bitfinex-derivatives/quotes_SOLF0:USTF0_20250528
["timestamp","ask_amount","ask_price","bid_price","bid_amount"]
[1748401416061,0.04085843,174.56,174.53,5.76592185]
[1748401418762,0.04085843,174.56,174.53,0.03912185]
[1748401419861,5.76675843,174.56,174.53,0.03912185]
[1748401420264,0.04085843,174.56,174.53,0.03912185]
[1748401420460,5.7265,174.54,174.53,0.03912185]
[1748401427769,0.04085843,174.56,174.53,0.03912185]
[1748401429073,0.04085843,174.56,174.53,5.76582185]
[1748401430471,0.04085843,174.56,174.53,0.03912185]
[1748401431172,0.04085843,174.56,174.55,5.7262]
[1748401431372,239.0,174.62,174.53,0.03912185]
[1748401431674,239.0,174.62,174.57,5.7253]
[1748401432268,0.04172598,174.61,174.57,5.7253]
[1748401432570,5.76622598,174.61,174.58,0.04365995]
[1748401432964,0.04172598,174.61,174.58,0.04365995]
[1748401433162,5.7247,174.6,174.58,0.04365995]
[1748401433568,0.04172598,174.61,174.58,0.04365995]
[1748401433967,5.7249,174.59,174.58,0.04365995]
[1748401434380,0.04172598,174.61,174.58,0.04365995]
[1748401435575,5.76602598,174.61,174.58,0.04365995]
[1748401437580,5.7246,174.6,174.58,0.04365995]
[1748401439081,5.7249,174.59,174.58,0.04365995]
[1748401444581,244.7246,174.6,174.58,0.04365995]
[1748401444784,239.0,174.6,174.58,0.04365995]
[1748401446281,239.0,174.6,174.58,5.76875995]
[1748401446885,239.0,174.6,174.58,0.04365995]
[1748401448584,5.76602598,174.61,174.58,0.04365995]
[1748401448890,0.04172598,174.61,174.58,5.76885995]
[1748401449787,5.76612598,174.61,174.58,0.04365995]
[1748401450884,5.76612598,174.61,174.58,5.76885995]
[1748401451284,0.04172598,174.61,174.58,5.76885995]
[1748401451487,0.04172598,174.61,174.58,0.04365995]
[1748401452190,0.04172598,174.61,174.58,5.76885995]
[1748401458693,239.0,174.68,174.6,5.7246]
[1748401458900,239.0,174.68,174.57,29.3]
[1748401459292,244.7222,174.68,174.64,5.7233]
[1748401459493,239.0,174.68,174.61,29.3]
[1748401459788,239.0,174.68,174.66,5.7225]
[1748401460391,239.0,174.68,174.65,5.7228]
[1748401460587,5.76030438,174.69,174.65,5.7228]
[1748401463093,0.03860438,174.69,174.64,5.7232]
[1748401463500,5.7224,174.67,174.64,5.7232]
[1748401463701,0.03860438,174.69,174.64,5.7232]
[1748401464102,5.7221,174.68,174.64,5.7232]
[1748401464494,0.03860438,174.69,174.64,5.7232]
[1748401464700,5.7224,174.67,174.64,5.7232]
[1748401464895,0.03860438,174.69,174.64,5.7232]
[1748401465400,5.7228,174.66,174.63,35.06166274]
[1748401465899,0.03860438,174.69,174.63,29.33816274]
[1748401466497,0.03860438,174.69,174.63,35.06166274]
[1748401467104,5.7228,174.66,174.63,35.06166274]
[1748401467908,5.723,174.65,174.63,35.06166274]
[1748401468110,5.723,174.65,174.63,29.33816274]
[1748401468509,5.7233,174.64,174.63,0.03816274]
[1748401468808,0.03670578,174.65,174.57,29.28]
[1748401469012,5.7254,174.58,174.55,5.7261]
[1748401469207,239.0,174.64,174.54,29.28]
[1748401469404,6.64888194,174.63,174.54,29.28]
[1748401469615,6.64888194,174.63,174.54,35.0065]
[1748401469802,0.04335554,174.6,174.57,0.04397337]
[1748401470206,5.7256,174.58,174.57,0.04397337]
[1748401476408,239.0,174.59,174.51,29.28]
[1748401476611,239.0,174.58,174.51,29.28]
[1748401477012,239.0,174.58,174.51,35.0075]
[1748401477413,0.04353024,174.56,174.53,0.03754569]
[1748401478019,5.7265,174.55,174.53,0.03754569]
[1748401478618,5.7266,174.54,174.53,0.03754569]
[1748401479918,239.0,174.55,174.46,4.0949]
[1748401480123,245.64888194,174.54,174.45,29.26]
[1748401480324,8.52458194,174.54,174.43,141.06]
[1748401480520,29.26,174.53,174.43,141.06]
[1748401480820,5.7284,174.49,174.46,5.7292]
[1748401481021,5.76634326,174.49,174.46,5.76759598]
[1748401481624,0.03794326,174.49,174.47,5.7288]
[1748401482022,0.03794326,174.49,174.46,0.03839598]
[1748401482226,0.03794326,174.49,174.47,5.7288]
[1748401482826,0.03794326,174.49,174.48,5.7285]
[1748401483025,0.03794326,174.49,174.46,0.03839598]
[1748401483524,0.03794326,174.49,174.47,5.7287]
[1748401483726,0.03794326,174.49,174.46,0.03839598]
[1748401484126,0.03794326,174.49,174.47,5.7286]
[1748401488530,0.03794326,174.49,174.48,5.7285]
[1748401489825,0.03794326,174.49,174.47,5.7287]
[1748401490327,0.03794326,174.49,174.46,0.03839598]
[1748401490528,0.03794326,174.49,174.48,5.7285]
[1748401495933,0.03794326,174.49,174.47,5.7287]
[1748401496829,0.03794326,174.49,174.46,0.03839598]
[1748401497730,5.76644326,174.49,174.46,0.03839598]
[1748401498125,0.03794326,174.49,174.46,0.03839598]
[1748401499232,0.03794326,174.49,174.46,5.76759598]
[1748401499535,0.03794326,174.49,174.46,0.03839598]
[1748401500035,0.03794326,174.49,174.47,5.7288]
[1748401500536,0.03794326,174.49,174.48,5.7285]
[1748401501731,5.7264,174.55,174.5,5.7276]
[1748401502132,29.26,174.56,174.48,111.84]
[1748401502325,5.7266,174.54,174.48,111.84]
[1748401502635,29.26,174.56,174.48,111.84]
[1748401502831,0.03936718,174.54,174.5,0.0394961]
[1748401503032,5.76596718,174.54,174.5,5.7673961]
[1748401503434,5.76596718,174.54,174.5,0.0394961]
[1748401505038,5.7269,174.53,174.5,0.0394961]
[1748401506141,5.76606718,174.54,174.5,5.7673961]
[1748401506640,0.03936718,174.54,174.5,0.0394961]
[1748401507031,0.03936718,174.54,174.5,5.7672961]
[1748401507439,0.03936718,174.54,174.5,0.0394961]
[1748401507639,0.03936718,174.54,174.51,5.7273]
[1748401508941,5.76596718,174.54,174.51,5.7273]
[1748401509539,5.76596718,174.54,174.5,5.7672961]
[1748401510238,0.03936718,174.54,174.5,0.0394961]
[1748401510641,5.7269,174.53,174.5,0.0394961]
[1748401511041,5.7269,174.53,174.5,5.7672961]
[1748401511545,5.7269,174.53,174.5,0.0394961]
[1748401511745,5.76606718,174.54,174.5,0.0394961]
[1748401512142,5.76606718,174.54,174.5,5.7672961]
[1748401513351,5.76606718,174.54,174.51,5.7275]
[1748401514249,0.03936718,174.54,174.51,5.7275]
[1748401515451,0.03936718,174.54,174.52,5.7269]
[1748401515754,0.03936718,174.54,174.5,0.0394961]
[1748401516052,0.03936718,174.54,174.53,5.7269]
[1748401516754,29.24,174.62,174.51,29.24]
[1748401516954,241.44359667,174.61,174.51,29.24]
[1748401517150,239.0,174.61,174.51,29.24]
[1748401517346,244.7245,174.61,174.57,5.7254]
[1748401517753,244.76687896,174.61,174.57,5.76481314]
[1748401518356,5.7248,174.6,174.57,0.03941314]
[1748401520551,239.04237896,174.61,174.57,0.03941314]
[1748401521455,2.44416617,174.6,174.57,0.03941314]
[1748401521656,239.04237896,174.61,174.57,0.03941314]
[1748401521959,5.7252,174.58,174.57,0.03941314]
[1748401523459,34.9652,174.58,174.57,0.03941314]
[1748401533560,5.7252,174.58,174.57,0.03941314]
[1748401548468,8.17106285,174.58,174.57,0.03941314]
[1748401548670,8.17106017,174.58,174.57,0.03941314]
[1748401550464,5.7252,174.58,174.57,0.03941314]
[1748401550771,8.17209647,174.58,174.57,0.03941314]
[1748401551266,8.17243182,174.58,174.57,0.03941314]
[1748401551667,8.17248243,174.58,174.57,0.03941314]
[1748401552269,5.7252,174.58,174.57,0.03941314]
[1748401553872,8.17270989,174.58,174.57,0.03941314]
[1748401555872,8.17285218,174.58,174.57,0.03941314]
[1748401556066,8.17329336,174.58,174.57,0.03941314]
[1748401557169,5.7252,174.58,174.57,0.03941314]
[1748401557771,8.17400376,174.58,174.57,0.03941314]
[1748401558475,5.7252,174.58,174.57,0.03941314]
[1748401558675,8.17439868,174.58,174.57,0.03941314]
[1748401560074,8.17498546,174.58,174.57,0.03941314]
[1748401560977,8.17563215,174.58,174.57,0.03941314]
[1748401562873,5.7252,174.58,174.57,0.03941314]
[1748401563175,8.17633217,174.58,174.57,0.03941314]
[1748401563478,8.17633279,174.58,174.57,0.03941314]
[1748401563876,5.7252,174.58,174.57,0.03941314]
[1748401564279,239.0,174.59,174.57,0.03941314]
[1748401565679,239.0,174.59,174.57,5.76481314]
[1748401565880,239.0,174.59,174.57,0.03941314]
[1748401566280,239.0,174.59,174.58,5.7252]
[1748401566876,239.0,174.59,174.57,5.76481314]
[1748401567981,239.0,174.59,174.58,5.7252]
[1748401568381,239.0,174.59,174.57,5.76481314]
[1748401568980,239.0,174.59,174.58,5.7252]
[1748401569182,0.04237896,174.61,174.57,0.03941314]
[1748401569781,0.04237896,174.61,174.58,5.7251]
[1748401569982,5.76677896,174.61,174.58,5.7251]
[1748401570183,0.04237896,174.61,174.57,0.03941314]
[1748401570487,5.7252,174.58,174.57,0.03941314]
[1748401575191,8.17614616,174.58,174.57,0.03941314]
[1748401575586,5.7252,174.58,174.57,0.03941314]
[1748401588000,9.97600432,174.58,174.57,0.03941314]
[1748401588999,5.7252,174.58,174.57,0.03941314]
[1748401589300,9.97600432,174.58,174.57,0.03941314]
[1748401593200,5.7252,174.58,174.57,0.03941314]
[1748401594303,239.0,174.6,174.57,0.03941314]
[1748401595205,244.7247,174.6,174.57,5.76481314]
[1748401596300,239.0,174.6,174.58,5.7251]
[1748401596496,0.04237896,174.61,174.58,5.7251]
[1748401596699,2.45679945,174.6,174.57,0.03941314]
[1748401596898,5.76687896,174.61,174.57,0.03941314]
[1748401597099,2.45688261,174.6,174.57,5.76481314]
[1748401597299,5.76687896,174.61,174.57,5.76481314]
[1748401597500,2.45696661,174.6,174.57,5.76481314]
[1748401597696,5.76687896,174.61,174.57,5.76481314]
[1748401597903,2.45698443,174.6,174.57,5.76481314]
[1748401598202,5.76687896,174.61,174.57,5.76481314]
[1748401598402,2.4572986,174.6,174.57,5.76481314]
[1748401598605,5.76687896,174.61,174.57,5.76481314]
[1748401598807,2.45717204,174.6,174.57,5.76481314]
[1748401599008,5.76687896,174.61,174.57,5.76481314]
[1748401599207,2.45722893,174.6,174.57,5.76481314]
[1748401599410,5.76687896,174.61,174.57,5.76481314]
[1748401599717,8.18192639,174.6,174.57,0.03941314]
[1748401599915,5.7247,174.6,174.57,0.03941314]
[1748401600917,5.725,174.59,174.57,0.03941314]
[1748401601622,5.7252,174.58,174.57,0.03941314]
[1748401601811,9.97600432,174.58,174.57,0.03941314]
[1748401602209,12.43303135,174.58,174.57,0.03941314]
[1748401603525,5.7267,174.54,174.51,5.7274]
[1748401604318,0.0433443,174.54,174.52,5.7271]
[1748401604518,0.0433443,174.54,174.51,0.04317736]
[1748401605027,0.0433443,174.54,174.52,5.7269]
[1748401605825,0.0433443,174.54,174.53,5.7269]
[1748401620129,5.7247,174.6,174.56,5.7257]
[1748401620335,2.45575595,174.59,174.56,5.7257]
[1748401620536,5.7247,174.6,174.56,5.7257]
[1748401620735,2.4558859,174.59,174.57,5.7256]
[1748401620933,5.7247,174.6,174.57,5.7256]
[1748401621128,0.03791862,174.6,174.57,0.03687859]
[1748401621437,0.03791862,174.6,174.57,5.76237859]
[1748401622032,5.76251862,174.6,174.57,5.76237859]
[1748401622333,0.03791862,174.6,174.57,5.76237859]
[1748401622733,0.03791862,174.6,174.58,5.7252]
[1748401623138,0.03791862,174.6,174.57,5.76227859]
[1748401624537,0.03791862,174.6,174.59,5.7249]
[1748401624944,5.723,174.65,174.57,117.70537859]
[1748401625240,5.723,174.65,174.57,117.6685]
[1748401625639,5.723,174.65,174.61,5.7242]
[1748401626039,5.76076206,174.65,174.61,5.76411858]
[1748401626944,0.03776206,174.65,174.62,5.7238]
[1748401627340,0.03776206,174.65,174.61,0.03991858]
[1748401627944,0.03776206,174.65,174.64,5.7233]
[1748401628346,0.03776206,174.65,174.61,0.03991858]
[1748401628644,0.03776206,174.65,174.63,5.7236]
[1748401629335,5.76076206,174.65,174.62,5.7239]
[1748401629534,0.03776206,174.65,174.61,0.03991858]
[1748401630146,5.7236,174.63,174.61,0.03991858]
[1748401631746,5.7239,174.62,174.61,0.03991858]
[1748401633545,5.7252,174.58,174.57,29.1]
[1748401633744,5.7252,174.58,174.54,29.1]
[1748401633945,239.0,174.63,174.54,34.8265]
[1748401634137,6.64103986,174.61,174.54,29.1]
[1748401634338,2.0686,174.6,174.54,29.1]
[1748401634541,5.7258,174.57,174.55,0.04001472]
[1748401634739,0.03937651,174.59,174.55,0.04001472]
[1748401635246,5.7254,174.58,174.55,5.76601472]
[1748401635838,5.7256,174.57,174.55,0.04001472]
[1748401638651,5.7253,174.58,174.55,0.04001472]
[1748401643356,5.7253,174.58,174.55,5.76621472]
[1748401644043,0.03937651,174.59,174.55,5.76621472]
[1748401644245,5.76437651,174.59,174.55,5.76621472]
[1748401644847,0.03937651,174.59,174.56,5.7257]
[1748401645053,0.03937651,174.59,174.55,0.04001472]
[1748401645656,5.76447651,174.59,174.55,5.76601472]
[1748401646458,0.03937651,174.59,174.55,0.04001472]
[1748401647558,5.7258,174.57,174.55,0.04001472]
[1748401654060,5.7259,174.56,174.55,0.04001472]
[1748401656066,5.7257,174.57,174.55,0.04001472]
[1748401658663,5.7259,174.56,174.55,0.04001472]
[1748401668570,5.7257,174.57,174.55,0.04001472]
[1748401668880,239.0,174.58,174.55,0.04001472]
[1748401669074,244.7254,174.58,174.55,0.04001472]
[1748401670375,244.7254,174.58,174.55,5.76621472]
[1748401674277,5.7257,174.57,174.55,0.04001472]
[1748401675773,244.7254,174.58,174.55,5.76621472]
[1748401676172,244.7254,174.58,174.55,0.04001472]
[1748401676976,239.0,174.58,174.55,5.76621472]
[1748401677981,244.7253,174.58,174.55,0.04001472]
[1748401678176,239.0,174.58,174.55,0.04001472]
[1748401678384,239.0,174.58,174.56,5.7257]
[1748401678776,239.0,174.58,174.56,117.2057]
[1748401682280,0.03937651,174.59,174.56,117.2057]
[1748401682680,0.03937651,174.59,174.56,111.46]
[1748401683185,5.7255,174.58,174.56,111.46]
[1748401683380,0.03937651,174.59,174.56,111.46]
[1748401683575,0.03937651,174.59,174.55,111.50001472]
[1748401684280,5.7256,174.57,174.55,111.50001472]
[1748401684882,5.7256,174.57,174.55,0.04001472]
[1748401686193,0.03937651,174.59,174.56,29.04]
[1748401687388,0.03937651,174.59,174.58,5.7252]
[1748401687583,0.03937651,174.59,174.58,117.1652]
[1748401687992,0.03937651,174.59,174.58,111.44]
[1748401688887,0.03937651,174.59,174.58,117.1652]
[1748401689088,0.03937651,174.59,174.58,111.44]
[1748401689287,0.03937651,174.59,174.56,29.04]
[1748401689588,0.03937651,174.59,174.57,111.44]
[1748401690478,5.7256,174.58,174.57,111.44]
[1748401691385,0.03937651,174.59,174.55,0.04001472]
[1748401691989,5.7258,174.57,174.55,0.04001472]
[1748401692680,5.7259,174.56,174.55,0.04001472]
[1748401693281,5.7257,174.57,174.55,0.04001472]
[1748401693899,5.7259,174.56,174.55,0.04001472]
[1748401694996,5.7257,174.57,174.55,0.04001472]
[1748401695194,0.03937651,174.59,174.55,0.04001472]
[1748401695394,5.76447651,174.59,174.56,5.7257]
[1748401695589,5.76447651,174.59,174.55,0.04001472]
[1748401695894,0.03937651,174.59,174.56,5.7256]
[1748401696399,0.03937651,174.59,174.56,5.7257]
[1748401697389,0.03937651,174.59,174.57,5.7255]
[1748401697596,0.03937651,174.59,174.55,0.04001472]
[1748401698190,0.03937651,174.59,174.56,5.7257]
[1748401699896,0.03937651,174.59,174.57,5.7254]
[1748401702800,0.03937651,174.59,174.58,5.7252]
[1748401703492,0.03937651,174.59,174.58,117.1252]
[1748401707005,0.03937651,174.59,174.58,111.4]
[1748401707603,0.03937651,174.59,174.58,117.1252]
[1748401708905,0.03937651,174.59,174.58,111.4]
[1748401709099,0.03937651,174.59,174.55,0.04001472]
[1748401709301,0.03937651,174.59,174.55,111.42001472]
[1748401710100,5.7257,174.57,174.55,117.14621472]
[1748401710308,0.03937651,174.59,174.55,0.04001472]
[1748401711300,5.7258,174.57,174.55,0.04001472]
[1748401711705,0.03937651,174.59,174.55,0.04001472]
[1748401711905,5.7254,174.58,174.55,0.04001472]
[1748401712603,5.7254,174.58,174.56,5.7259]
[1748401712805,5.7254,174.58,174.55,0.04001472]
[1748401713000,5.7256,174.57,174.55,0.04001472]
[1748401713307,0.03937651,174.59,174.55,0.04001472]
[1748401713814,5.7259,174.56,174.55,0.04001472]
[1748401715610,5.7257,174.57,174.55,0.04001472]
[1748401720116,5.7259,174.56,174.55,0.04001472]
[1748401722714,239.03937651,174.59,174.56,5.7257]
[1748401723410,244.76447651,174.59,174.55,5.76611472]
[1748401724013,244.76447651,174.59,174.55,0.04001472]
[1748401724210,244.76447651,174.59,174.56,5.7257]
[1748401726613,5.76447651,174.59,174.56,5.7257]
[1748401726809,0.03937651,174.59,174.58,5.7252]
[1748401727008,0.03937651,174.59,174.55,0.04001472]
[1748401727610,0.03937651,174.59,174.56,5.7257]
[1748401729325,0.03937651,174.59,174.55,5.76621472]
[1748401729810,0.03937651,174.59,174.55,0.04001472]
[1748401730017,5.76447651,174.59,174.56,5.7259]
[1748401730512,5.76447651,174.59,174.57,5.7255]
[1748401730918,5.7252,174.58,174.55,0.04001472]
[1748401731118,5.7252,174.58,174.55,117.10601472]
[1748401731910,5.7252,174.58,174.56,5.7258]
[1748401732519,5.76437651,174.59,174.56,5.7258]
[1748401732723,5.76437651,174.59,174.57,5.7254]
[1748401733617,5.76437651,174.59,174.56,5.7257]
[1748401734924,0.03937651,174.59,174.57,5.7256]
[1748401735629,5.76437651,174.59,174.56,5.7257]
[1748401735931,0.03937651,174.59,174.56,5.7257]
[1748401736128,5.7254,174.58,174.56,5.7257]
[1748401736435,0.03937651,174.59,174.55,111.38001472]
[1748401737430,5.7259,174.57,174.55,111.38001472]
[1748401737636,5.7259,174.57,174.55,0.04001472]
[1748401738434,5.7259,174.56,174.55,0.04001472]
[1748401738634,0.03937651,174.59,174.55,5.76621472]
[1748401739635,5.7255,174.58,174.55,5.76621472]
[1748401740031,5.7256,174.57,174.55,5.76621472]
[1748401740842,5.7256,174.57,174.55,0.04001472]
[1748401741039,5.7259,174.56,174.55,0.04001472]
[1748401741538,0.03937651,174.59,174.55,0.04001472]
[1748401742144,5.7257,174.57,174.55,0.04001472]
[1748401742440,5.7254,174.58,174.55,0.04001472]
[1748401742642,0.03937651,174.59,174.55,0.04001472]
[1748401743140,5.76437651,174.59,174.56,5.7257]
[1748401744049,0.03937651,174.59,174.56,4.2495615]
[1748401744536,0.03937651,174.59,174.57,29.0]
[1748401744936,0.03937651,174.59,174.58,4.2495615]
[1748401745342,0.03937651,174.59,174.57,29.0]
[1748401745540,0.03937651,174.59,174.56,4.2495615]
[1748401745740,0.03937651,174.59,174.56,144.5495615]
[1748401745941,0.03937651,174.59,174.57,5.7252]
[1748401747547,0.03937651,174.59,174.58,5.7252]
[1748401749646,0.03937651,174.59,174.57,5.7254]
[1748401751545,0.03937651,174.59,174.58,5.7252]
[1748401756950,35.63947837,174.66,174.56,140.3]
[1748401756951,270.0094,174.68,174.62,5.7238]
[1748401757148,2.44761018,174.67,174.62,5.7238]
[1748401757346,2.44662496,174.66,174.62,5.7238]
[1748401757544,2.44662496,174.65,174.62,5.7238]
[1748401757853,5.7227,174.66,174.57,6.63947837]
[1748401757854,270.0094,174.68,174.63,5.7236]
[1748401758056,2.49020633,174.67,174.64,0.03795806]
[1748401758251,0.04372448,174.67,174.64,5.76105806]
[1748401758553,0.04372448,174.67,174.64,0.03795806]
[1748401759245,0.04372448,174.67,174.64,5.76105806]
[1748401759442,5.76612448,174.67,174.64,5.76105806]
[1748401760158,0.04372448,174.67,174.64,0.03795806]
[1748401760542,0.04372448,174.67,174.66,5.7226]
[1748401771250,0.04372448,174.67,174.65,5.7228]
[1748401775657,0.04372448,174.67,174.64,28.99795806]
[1748401776053,5.76622448,174.67,174.64,34.72105806]
[1748401777457,5.7227,174.66,174.64,28.99795806]
[1748401777847,5.7227,174.66,174.64,34.72125806]
[1748401778747,0.04372448,174.67,174.64,34.72125806]
[1748401778949,0.04372448,174.67,174.64,28.99795806]
[1748401779356,5.7227,174.66,174.64,28.99795806]
[1748401779559,0.04372448,174.67,174.64,0.03795806]
[1748401779950,5.7228,174.66,174.64,5.76115806]
[1748401780356,5.7228,174.66,174.64,0.03795806]
[1748401783161,5.76602448,174.67,174.64,5.76115806]
[1748401785061,5.7227,174.66,174.64,0.03795806]
[1748401785261,0.04372448,174.67,174.64,0.03795806]
[1748401785666,5.7228,174.66,174.64,0.03795806]
[1748401786159,5.76612448,174.67,174.64,0.03795806]
[1748401786865,5.7226,174.66,174.64,0.03795806]
[1748401787762,0.04372448,174.67,174.64,0.03795806]
[1748401788370,5.76602448,174.67,174.64,0.03795806]
[1748401791164,5.76602448,174.67,174.64,5.76105806]
[1748401791559,5.76602448,174.67,174.64,0.03795806]
[1748401792961,5.76602448,174.67,174.64,5.76115806]
[1748401793263,5.76602448,174.67,174.64,0.03795806]
[1748401793767,5.76602448,174.67,174.64,5.76115806]
[1748401795064,0.04372448,174.67,174.66,5.7226]
[1748401796371,0.04372448,174.67,174.66,9.9689754]
[1748401797369,0.04372448,174.67,174.66,5.7226]
[1748401798269,0.04372448,174.67,174.65,34.6229]
[1748401800370,0.04372448,174.67,174.65,28.9]
[1748401800577,0.04372448,174.67,174.66,5.7226]
[1748401800779,240.927,174.73,174.65,28.9]
[1748401800982,2.45152816,174.72,174.69,5.7214]
[1748401801170,246.6475,174.73,174.69,5.7214]
[1748401801680,246.6475,174.73,174.7,5.7213]
[1748401801870,246.68649736,174.73,174.7,5.7213]
[1748401802269,244.75949736,174.73,174.7,5.7213]
[1748401802569,239.03899736,174.73,174.7,5.7213]
[1748401803869,0.03899736,174.73,174.72,5.7206]
[1748401804579,30.9329,174.79,174.75,5.7196]
[1748401804775,2.45232825,174.78,174.7,117.75280927]
[1748401804967,5.7182,174.8,174.7,117.75280927]
[1748401805171,2.45101457,174.79,174.76,5.7191]
[1748401805371,5.7182,174.8,174.76,5.7191]
[1748401805572,5.75345711,174.8,174.76,5.76102694]
[1748401806090,5.7184,174.79,174.76,5.76102694]
[1748401806383,5.75345711,174.8,174.76,5.76102694]
[1748401807588,5.75345711,174.8,174.77,5.719]
[1748401809678,0.03525711,174.8,174.76,0.04192694]
[1748401810388,5.7184,174.79,174.76,0.04192694]
[1748401811391,5.75345711,174.8,174.76,5.76102694]
[1748401811692,0.03525711,174.8,174.76,0.04192694]
[1748401811893,0.03525711,174.8,174.77,5.7188]
[1748401813590,0.03525711,174.8,174.76,0.04192694]
[1748401813993,0.03525711,174.8,174.77,28.86]
[1748401814701,0.03525711,174.8,174.78,5.7187]
[1748401815194,0.03525711,174.8,174.79,5.7184]
[1748401815798,0.03525711,174.8,174.78,5.7186]
[1748401817196,0.03525711,174.8,174.79,5.7184]
[1748401818000,0.03525711,174.8,174.78,5.7186]
[1748401818992,0.03525711,174.8,174.77,34.5789]
[1748401819297,0.03525711,174.8,174.77,28.86]
[1748401819703,0.03525711,174.8,174.77,34.579]
[1748401821000,0.03525711,174.8,174.78,5.7186]
[1748401821900,0.03525711,174.8,174.77,34.5789]
[1748401822101,0.03525711,174.8,174.77,28.86]
[1748401822293,0.03525711,174.8,174.76,0.04192694]
[1748401822495,5.719,174.77,174.76,0.04192694]
[1748401826504,5.7188,174.78,174.76,0.04192694]
[1748401829507,239.03525711,174.8,174.76,0.04192694]
[1748401831110,244.75345711,174.8,174.77,5.7189]
[1748401832906,5.7184,174.79,174.76,116.76112694]
[1748401833510,5.75345711,174.8,174.76,116.76112694]
[1748401835215,5.7185,174.79,174.76,111.04192694]
[1748401835716,0.03525711,174.8,174.76,111.04192694]
[1748401835912,5.7184,174.79,174.76,111.04192694]
[1748401836108,5.7184,174.79,174.76,116.76122694]
[1748401836316,0.03525711,174.8,174.76,111.04192694]
[1748401836515,5.719,174.77,174.76,111.04192694]
[1748401838420,5.7188,174.78,174.76,111.04192694]
[1748401838718,0.03525711,174.8,174.76,111.04192694]
[1748401838908,5.719,174.77,174.76,111.04192694]
[1748401839519,0.03525711,174.8,174.76,111.04192694]
[1748401840110,5.719,174.77,174.76,111.04192694]
[1748401842115,0.03525711,174.8,174.76,111.04192694]
[1748401842614,5.7189,174.78,174.76,116.76112694]
[1748401843920,5.7189,174.78,174.76,111.04192694]
[1748401845224,5.7189,174.78,174.76,116.76122694]
[1748401845926,5.7189,174.78,174.76,111.04192694]
[1748401846424,5.7189,174.78,174.76,0.04192694]
[1748401846930,5.719,174.77,174.76,0.04192694]
[1748401848927,5.7188,174.78,174.76,0.04192694]
[1748401854326,5.7188,174.78,174.76,5.76122694]
[1748401854527,5.7185,174.79,174.76,5.76122694]
[1748401859132,0.03525711,174.8,174.76,4.28178744]
[1748401859428,0.03525711,174.8,174.79,5.7184]
[1748401860824,0.03525711,174.8,174.76,28.86192694]
[1748401861423,5.7185,174.79,174.76,28.86192694]
[1748401861630,0.03525711,174.8,174.76,28.86192694]
[1748401862133,5.75345711,174.8,174.77,5.719]
[1748401862335,0.03525711,174.8,174.76,28.86192694]
[1748401862730,0.03525711,174.8,174.78,5.7186]
[1748401864434,0.03525711,174.8,174.79,5.7184]
[1748401871643,52.71478373,174.87,174.82,5.7173]
[1748401871838,8.16885031,174.86,174.82,5.7173]
[1748401872140,5.7162,174.86,174.82,5.7173]
[1748401872541,5.7162,174.86,174.83,5.7171]
[1748401872741,5.7162,174.86,174.82,0.04255515]
[1748401872944,28.82,174.87,174.82,0.04255515]
[1748401872945,5.7158,174.87,174.82,0.04255515]
[1748401873133,239.0,174.88,174.84,5.7167]
[1748401873339,5.7156,174.88,174.84,5.7167]
[1748401873539,28.78,174.9,174.82,110.94255515]
[1748401873743,2.45070769,174.88,174.82,116.65975515]
[1748401873940,5.7163,174.86,174.82,116.65975515]
[1748401874540,28.78,174.9,174.82,0.04255515]
[1748401874840,2.44969398,174.88,174.82,0.04255515]
[1748401875036,5.7167,174.85,174.82,5.75985515]
[1748401875436,28.78,174.9,174.82,0.04255515]
[1748401875637,5.7167,174.84,174.82,0.04255515]
[1748401878042,5.7165,174.85,174.82,5.75995515]
[1748401878938,239.0,174.88,174.83,5.717]
[1748401880945,5.7161,174.86,174.83,5.717]
[1748401882241,239.0,174.88,174.82,0.04255515]
[1748401882543,2.4464163,174.87,174.82,0.04255515]
[1748401882739,239.0,174.88,174.82,0.04255515]
[1748401882936,5.7171,174.83,174.82,0.04255515]
[1748401885548,5.7187,174.78,174.77,28.78]
[1748401885747,239.0,174.84,174.77,28.78]
[1748401885949,5.7185,174.79,174.77,28.78]
[1748401886144,239.0,174.84,174.74,28.78]
[1748401886447,0.04044599,174.81,174.77,0.03647106]
[1748401886644,5.7187,174.78,174.77,0.03647106]
[1748401888941,239.04044599,174.81,174.77,0.03647106]
[1748401889550,239.04044599,174.81,174.78,5.7185]